bitfinex-derivatives/quotes_ETHF0:USTF0_20210405
["timestamp","ask_amount","ask_price","bid_price","bid_amount"]
[1617622934880,2.22549,2051.7,2051.6,3.0719]
[1617622935082,2.22549,2051.7,2051.6,0.9691]
[1617622936283,2.22549,2051.7,2050.9,2.90695]
[1617622938185,2.22549,2051.7,2051.6,2.90695]
[1617622938382,2.22549,2051.7,2051.6,4.63385]
[1617622947189,2.22549,2051.7,2051.5,0.9777]
[1617622947190,2.22549,2051.7,2050.8,0.9868]
[1617622947390,2.22549,2051.7,2050.5,6.98680194]
[1617622947590,2.22549,2051.7,2050.5,2.0]
[1617622948190,2.22549,2051.7,2051.6,2.90695]
[1617622948390,30.0,2053.1,2051.6,4.66555]
[1617622948790,2.0,2053.0,2051.6,4.66555]
[1617622948991,32.0,2053.0,2051.6,4.66555]
[1617622950194,2.90695,2051.7,2051.6,4.66555]
[1617622951995,32.0,2053.0,2051.6,4.66555]
[1617622952195,2.0,2053.0,2052.1,2.90695]
[1617622952395,30.0,2053.3,2052.1,2.90695]
[1617622952396,32.0,2053.3,2052.1,5.71095]
[1617622952595,2.0,2052.9,2052.1,5.71095]
[1617622954196,2.0,2052.9,2052.1,2.804]
[1617622954197,2.90695,2052.2,2052.1,2.804]
[1617622954397,2.90695,2052.2,2051.7,2.90695]
[1617622954997,2.90695,2052.2,2051.7,3.88035]
[1617622956097,2.90695,2052.2,2051.7,2.90695]
[1617622956299,32.0,2053.2,2052.0,2.90695]
[1617622958302,2.90695,2052.1,2052.0,2.90695]
[1617622963714,2.90695,2052.1,2051.6,1.7586]
[1617622963915,2.90695,2052.1,2051.5,0.9663]
[1617622964315,2.0,2053.3,2051.9,2.90695]
[1617622964514,2.0,2053.3,2051.9,4.77605]
[1617622965117,32.571,2053.7,2051.9,4.77605]
[1617622965316,2.0,2053.3,2051.9,4.77605]
[1617622966316,2.90695,2052.0,2051.9,4.77605]
[1617622966715,2.90695,2052.0,2051.9,2.90695]
[1617622975942,63.4629,2053.6,2051.9,5.52195]
[1617622976139,61.4629,2053.6,2051.9,5.52195]
[1617622976535,61.4629,2053.6,2052.7,2.90695]
[1617622976735,61.4629,2053.6,2052.7,5.03725]
[1617622977926,61.4629,2053.6,2052.7,6.00025]
[1617622978527,2.90695,2052.8,2052.7,6.00025]
[1617622985435,2.90695,2052.8,2052.7,3.0933]
[1617622985636,69.28925,2052.8,2052.1,0.9841]
[1617622985844,69.28925,2052.8,2051.6,2.0]
[1617622986438,66.3823,2052.8,2051.7,2.90695]
[1617622988439,2.90695,2051.8,2051.7,2.90695]
[1617622989942,2.3377,2052.7,2051.7,2.90695]
[1617622990542,2.3377,2052.7,2052.0,2.90695]
[1617622991143,2.3377,2052.7,2051.5,0.9748]
[1617622991744,66.3823,2052.8,2051.5,0.9748]
[1617622992546,66.3823,2052.8,2052.3,2.90695]
[1617622992747,66.3823,2052.8,2052.3,3.87645]
[1617622994546,2.90695,2052.4,2052.3,3.87645]
[1617622995250,2.90695,2052.4,2052.3,2.90695]
[1617622997251,2.90695,2052.4,2051.5,0.9748]
[1617622998654,68.6595,2052.8,2051.9,2.90695]
[1617622999556,66.3823,2052.8,2051.9,2.90695]
[1617623000559,2.90695,2052.0,2051.9,2.90695]
[1617623003070,2.90695,2052.0,2051.6,5.0170408]
[1617623003469,2.90695,2052.0,2051.5,5.99427948]
[1617623003669,2.90695,2052.0,2051.5,5.01947948]
[1617623003871,2.90695,2052.0,2051.4,5.02057218]
[1617623004571,2.90695,2051.5,2051.3,7.02256436]
[1617623004771,4.74625,2051.5,2051.3,7.02256436]
[1617623005172,4.74625,2051.5,2051.3,2.0]
[1617623005774,4.74625,2051.5,2051.2,7.93061032]
[1617623005973,4.74625,2051.5,2051.2,5.02366032]
[1617623006173,63.17155,2051.5,2051.2,5.02366032]
[1617623006373,63.17155,2051.5,2051.1,5.02609713]
[1617623006574,2.90695,2051.2,2051.0,1.0]
[1617623017587,2.90695,2051.2,2051.0,6.02293917]
[1617623018892,2.90695,2051.2,2051.1,5.02193813]
[1617623019092,2.90695,2051.2,2051.1,7.77563813]
[1617623019293,2.90695,2051.2,2051.1,2.7537]
[1617623020093,2.90695,2051.2,2051.0,6.02321226]
[1617623020294,2.90695,2051.2,2051.0,1.0]
[1617623021494,11.0,2052.0,2051.0,1.0]
[1617623021694,11.0,2052.0,2051.1,5.02010004]
[1617623021893,11.0,2052.0,2051.1,7.65320004]
[1617623022095,11.0,2052.0,2051.3,5.01703496]
[1617623022494,11.0,2052.0,2051.1,10.76503162]
[1617623022495,11.0,2052.0,2051.4,5.01537967]
[1617623022696,13.90695,2052.0,2051.9,2.90695]
[1617623022895,13.90695,2052.0,2051.9,5.73265]
[1617623027698,11.0,2052.0,2051.9,5.73265]
[1617623032305,25.0,2052.0,2051.9,5.73265]
[1617623038816,24.2809,2052.0,2051.9,5.73265]
[1617623039419,24.2809,2052.0,2051.9,10.74163751]
[1617623040218,22.5688,2052.0,2051.9,5.73265]
[1617623040420,22.5688,2052.0,2051.9,10.7420067]
[1617623041222,22.0773,2052.0,2051.9,5.73265]
[1617623043321,22.0773,2052.0,2051.9,2.90695]
[1617623048027,22.0773,2052.0,2051.7,0.9623]
[1617623048226,22.0773,2052.0,2051.5,5.01401829]
[1617623048426,22.0773,2052.0,2051.0,1.0]
[1617623048427,22.0773,2052.0,2051.4,5.01534603]
[1617623048827,22.0773,2052.0,2051.3,5.01601376]
[1617623049027,2.90695,2051.4,2051.3,5.01601376]
[1617623049228,2.90695,2051.4,2051.1,9.03763348]
[1617623049229,2.90695,2051.4,2051.2,5.01716152]
[1617623050029,2.90695,2051.4,2051.3,5.01579953]
[1617623050229,2.90695,2051.4,2051.3,7.34589953]
[1617623050428,2.64105,2051.4,2051.3,7.34589953]
[1617623050629,2.64105,2051.4,2051.3,2.3301]
[1617623050829,2.64105,2051.4,2051.3,8.45747809]
[1617623051230,2.64105,2051.4,2051.3,2.3301]
[1617623052132,2.64105,2051.4,2051.3,8.45594535]
[1617623052329,22.0773,2052.0,2051.3,2.3301]
[1617623052729,22.0773,2052.0,2051.6,5.0131579]
[1617623052929,22.0773,2052.0,2051.6,5.9925579]
[1617623053129,22.0773,2052.0,2051.8,2.90695]
[1617623054430,22.0773,2052.0,2051.8,4.76155]
[1617623058533,22.0773,2052.0,2051.8,9.76719207]
[1617623058835,22.0773,2052.0,2051.8,4.76155]
[1617623061937,22.0773,2052.0,2051.8,9.76742166]
[1617623063338,22.0773,2052.0,2051.8,4.76155]
[1617623065746,20.3492,2052.0,2051.8,4.76155]
[1617623066248,20.3492,2052.0,2051.8,9.7644593]
[1617623066446,20.3492,2052.0,2051.8,11.7644593]
[1617623070850,20.3492,2052.0,2051.8,9.7644593]
[1617623073754,20.3492,2052.0,2051.9,5.00548147]
[1617623073953,20.3492,2052.0,2051.9,4.99548147]
[1617623076055,20.3492,2052.0,2051.8,2.90695]
[1617623083961,20.3492,2052.0,2051.9,4.99423973]
[1617623084161,20.3492,2052.0,2051.9,7.43933973]
[1617623087070,20.3492,2052.0,2051.9,2.4451]
[1617623088070,20.3492,2052.0,2051.8,7.90065886]
[1617623092574,20.3492,2052.0,2051.8,9.90065886]
[1617623092876,20.3492,2052.0,2051.9,4.98876064]
[1617623093074,19.1416,2052.0,2051.9,7.34066064]
[1617623094878,19.1416,2052.0,2051.9,2.3519]
[1617623096076,15.5921,2052.0,2051.9,2.3519]
[1617623096275,15.014,2052.0,2051.9,2.3519]
[1617623096477,15.014,2052.0,2051.9,4.3519]
[1617623096676,14.054,2052.0,2051.9,4.3519]
[1617623096875,12.62,2052.0,2051.9,4.3519]
[1617623097078,7.1087,2052.0,2051.9,10.44368268]
[1617623097276,5.1632,2052.0,2051.9,10.44368268]
[1617623097476,5.0958,2052.0,2051.9,10.44368268]
[1617623097676,3.3866,2052.0,2051.9,10.44368268]
[1617623097878,3.3866,2052.0,2051.9,4.3519]
[1617623098081,3.3866,2052.0,2051.9,10.43649841]
[1617623098879,3.3866,2052.0,2051.9,4.3519]
[1617623099279,2.351,2052.0,2051.9,4.3519]
[1617623099680,1.2083,2052.0,2051.9,4.3519]
[1617623101683,0.8888,2052.0,2051.9,4.3519]
[1617623101882,0.3195,2052.0,2051.9,4.3519]
[1617623102384,0.044,2052.0,2051.9,4.3519]
[1617623107287,2.90695,2052.7,2051.9,4.3519]
[1617623107587,2.90695,2052.7,2052.4,4.97983957]
[1617623107786,2.90695,2052.7,2052.4,5.94953957]
[1617623108186,2.90695,2052.7,2052.4,0.9697]
[1617623109389,2.90695,2052.7,2052.6,2.90695]
[1617623110792,2.90695,2052.7,2052.4,4.99172431]
[1617623112493,2.90695,2052.7,2052.3,7.89976858]
[1617623113494,2.90695,2052.4,2052.3,7.89976858]
[1617623114194,5.71395,2052.4,2052.3,7.89976858]
[1617623114794,5.71395,2052.4,2052.3,4.99281858]
[1617623115597,5.71395,2052.4,2051.8,2.90695]
[1617623115598,5.71395,2052.4,2052.2,4.99328548]
[1617623117596,5.71395,2052.4,2052.1,4.99624993]
[1617623117996,5.71395,2052.4,2052.0,4.9974551]
[1617623118397,2.0,2052.3,2051.9,4.99785256]
[1617623119198,32.0,2052.3,2051.9,4.99785256]
[1617623119397,2.90695,2052.0,2051.7,5.00095079]
[1617623119798,2.90695,2052.0,2051.6,5.00327212]
[1617623120204,2.90695,2052.0,2051.5,5.00380164]
[1617623120600,2.90695,2052.0,2051.6,5.00364417]
[1617623120997,2.90695,2052.0,2051.5,5.00233153]
[1617623121397,30.0,2052.3,2051.6,5.00203608]
[1617623123400,30.0,2052.3,2051.5,5.00646349]
[1617623123401,2.90695,2051.7,2051.5,5.00646349]
[1617623123601,4.72995,2051.7,2051.5,5.00646349]
[1617623123802,4.72995,2051.7,2051.4,5.00881737]
[1617623124201,4.72995,2051.7,2051.3,7.91631026]
[1617623125002,4.72995,2051.7,2051.4,5.01006096]
[1617623125301,4.72995,2051.7,2051.3,7.91750851]
[1617623125501,2.90695,2051.4,2051.3,7.91750851]
[1617623127804,2.90695,2051.4,2051.3,2.90695]
[1617623128203,2.90695,2051.4,2051.2,5.01665208]
[1617623128605,2.90695,2051.4,2051.1,5.01917568]
[1617623129006,2.90695,2051.4,2051.0,6.01925732]
[1617623129503,2.90695,2051.1,2051.0,6.01925732]
[1617623129703,5.15535,2051.1,2051.0,6.01925732]
[1617623129904,5.15535,2051.1,2051.0,1.0]
[1617623139914,35.15535,2051.1,2051.0,1.0]
[1617623141416,37.15535,2051.1,2051.0,1.0]
[1617623146919,49.15535,2051.1,2051.0,1.0]
[1617623151935,47.15535,2051.1,2051.0,1.0]
[1617623152534,49.15535,2051.1,2051.0,1.0]
[1617623153235,47.15535,2051.1,2051.0,1.0]
[1617623158438,60.15535,2051.1,2051.0,1.0]
[1617623159641,62.15535,2051.1,2051.0,1.0]
[1617623159842,62.15535,2051.1,2051.0,0.0293]
[1617623163852,62.15535,2051.1,2049.0,5.02033903]
[1617623164652,67.4046,2050.4,2049.0,5.02033903]
[1617623164852,67.4046,2050.4,2048.9,5.01967386]
[1617623164853,32.0,2050.3,2048.9,5.01967386]
[1617623165952,32.0,2050.3,2049.3,2.90695]
[1617623167858,2.90695,2049.4,2049.3,2.90695]
[1617623168060,5.47925,2049.4,2049.3,2.90695]
[1617623170162,5.47925,2049.4,2048.7,5.02292383]
[1617623170561,5.47925,2049.4,2048.6,5.02380148]
[1617623170961,5.47925,2049.4,2048.5,5.02588315]
[1617623171362,5.47925,2049.4,2048.4,6.01130935]
[1617623171564,5.47925,2049.4,2048.5,5.0251976]
[1617623171964,2.5723,2049.4,2048.8,2.90695]
[1617623173164,30.0,2049.4,2048.8,2.90695]
[1617623173564,30.0,2049.4,2047.9,5.01656325]
[1617623173764,30.0,2049.4,2047.4,2.0]
[1617623173765,31.8372,2049.4,2047.6,5.02189925]
[1617623173965,31.8372,2049.4,2048.5,2.90695]
[1617623174167,2.0,2049.3,2048.5,2.90695]
[1617623174369,30.0,2049.2,2048.5,2.90695]
[1617623174973,65.2574,2048.8,2048.5,2.90695]
[1617623175172,67.9495,2048.8,2048.5,2.90695]
[1617623175972,2.90695,2048.6,2048.5,2.90695]
[1617623177776,2.90695,2048.6,2048.5,3.88855]
[1617623177976,2.90695,2048.7,2048.5,2.90695]
[1617623180878,1.8372,2049.4,2048.5,2.90695]
[1617623181078,68.2831,2050.1,2048.5,2.90695]
[1617623181478,98.2831,2050.1,2048.5,2.90695]
[1617623182078,98.2831,2050.1,2049.3,2.90695]
[1617623182780,2.0,2050.0,2049.3,2.90695]
[1617623182978,30.0,2049.9,2049.3,2.90695]
[1617623183181,33.9896,2049.9,2049.3,2.90695]
[1617623183982,2.90695,2049.4,2049.3,2.90695]
[1617623184883,5.61795,2049.4,2049.3,2.90695]
[1617623186483,5.61795,2049.4,2047.8,0.9783]
[1617623186683,5.61795,2049.4,2047.6,2.0]
[1617623187283,5.61795,2049.4,2047.5,2.0]
[1617623187985,2.711,2049.4,2048.7,2.90695]
[1617623188385,33.9896,2049.9,2048.7,2.90695]
[1617623190087,1.9896,2049.9,2048.7,2.90695]
[1617623190287,68.2831,2050.1,2048.7,2.90695]
[1617623191087,68.2831,2050.1,2048.8,2.0]
[1617623192088,68.2831,2050.1,2049.4,2.90695]
[1617623193990,98.2831,2050.1,2049.4,2.90695]
[1617623194191,2.90695,2049.5,2049.4,2.90695]
[1617623196193,5.26535,2049.5,2049.4,2.90695]
[1617623197695,2.90695,2049.5,2049.4,2.90695]
[1617623203600,4.70295,2049.5,2049.4,2.90695]
[1617623204199,4.70295,2049.5,2048.6,2.0]
[1617623205902,4.70295,2049.5,2048.5,2.0]
[1617623206101,1.796,2049.5,2048.9,2.90695]
[1617623208103,2.90695,2049.0,2048.9,2.90695]
[1617623208303,5.02715,2049.0,2048.9,2.90695]
[1617623209906,5.02715,2049.0,2048.9,3.88765]
[1617623210105,5.02715,2049.0,2048.9,2.90695]
[1617623212907,2.90695,2049.0,2048.9,2.90695]
[1617623213108,57.0208,2049.8,2048.9,2.90695]
[1617623213309,57.0208,2049.8,2048.9,4.76495]
[1617623213508,30.0,2050.3,2048.9,4.76495]
[1617623214308,2.90695,2049.1,2048.9,4.76495]
[1617623215111,30.0,2050.3,2048.9,4.76495]
[1617623215510,55.8202,2051.0,2048.9,4.76495]
[1617623215711,30.0,2050.9,2049.0,2.0]
[1617623215912,30.0,2050.9,2049.0,2.982]
[1617623216111,30.0,2050.9,2049.0,8.01392826]
[1617623216312,30.0,2050.9,2049.8,2.90695]
[1617623216511,30.0,2050.9,2049.8,5.15365]
[1617623220313,30.0,2050.9,2050.2,2.90695]
[1617623220714,55.8202,2051.0,2050.2,2.90695]
[1617623222319,2.90695,2050.3,2050.2,2.90695]
[1617623228823,2.90695,2050.3,2050.2,4.90695]
[1617623229024,55.8202,2051.0,2050.2,4.90695]
[1617623230825,55.8202,2051.0,2050.8,2.90695]
[1617623231025,55.8202,2051.0,2050.8,4.95985]
[1617623231225,25.0,2051.1,2050.8,4.95985]
[1617623232728,2.90695,2051.0,2050.8,4.95985]
[1617623247050,2.90695,2051.0,2050.8,2.90695]
[1617623251952,2.90695,2051.0,2050.4,5.02812757]
[1617623252355,2.90695,2051.0,2050.2,5.03013362]
[1617623252956,25.0,2051.1,2050.4,2.90695]
[1617623254955,2.90695,2050.5,2050.4,2.90695]
[1617623255159,4.89185,2050.5,2050.4,2.90695]
[1617623257956,4.89185,2050.5,2050.4,3.87575]
[1617623258357,4.89185,2050.5,2050.4,2.90695]
[1617623266469,4.89185,2050.5,2050.4,3.88655]
[1617623266669,4.89185,2050.5,2050.4,2.90695]
[1617623271173,4.89185,2050.5,2050.4,3.89355]
[1617623271375,4.89185,2050.5,2050.4,2.90695]
[1617623275279,4.89185,2050.5,2050.1,5.03695039]
[1617623275479,2.90695,2050.2,2050.1,7.94390039]
[1617623276079,2.90695,2050.2,2050.1,2.90695]
[1617623276481,2.90695,2050.2,2050.0,5.03764685]
[1617623277081,2.90695,2050.2,2049.8,5.04044207]
[1617623277681,2.90695,2049.9,2049.8,5.04044207]
[1617623277882,4.75265,2049.9,2049.8,5.04044207]
[1617623279684,4.75265,2049.9,2049.7,5.04195331]
[1617623283685,4.75265,2049.9,2049.8,2.90695]
[1617623284489,2.90695,2049.9,2049.8,2.90695]
[1617623285090,2.90695,2049.9,2049.8,7.95081724]
[1617623286695,2.90695,2049.9,2049.8,2.90695]
[1617623286895,2.90695,2049.9,2049.8,7.96256258]
[1617623287896,2.90695,2049.9,2049.8,2.90695]
[1617623288297,2.90695,2049.9,2049.8,7.96220071]
[1617623288496,2.90695,2049.9,2049.8,5.05525071]
[1617623289499,2.90695,2049.9,2049.6,5.05496115]
[1617623289696,4.88125,2049.9,2049.6,5.05496115]
[1617623293300,4.88125,2049.9,2049.7,5.05555512]
[1617623293499,2.90695,2049.9,2049.7,5.05555512]
[1617623293898,2.90695,2049.9,2049.8,2.90695]
[1617623295002,2.90695,2049.9,2049.8,7.96065707]
[1617623296003,2.90695,2049.9,2049.8,2.90695]
[1617623298506,2.90695,2049.9,2049.8,7.96315863]
[1617623300508,2.90695,2049.9,2049.7,6.18004194]
[1617623300909,2.90695,2049.9,2049.8,5.05749469]
[1617623302109,2.90695,2049.9,2049.7,5.05676521]
[1617623303811,2.90695,2049.9,2049.8,5.0569071]
[1617623308720,2.90695,2049.9,2049.7,5.05715498]
[1617623311321,2.90695,2049.9,2049.6,5.05845649]
[1617623314025,32.90695,2049.9,2049.5,5.05689296]
[1617623314425,32.90695,2049.9,2049.6,5.05660363]
[1617623315225,32.90695,2049.9,2049.5,5.05680167]
[1617623315626,32.90695,2049.9,2049.4,5.05813518]
[1617623315830,2.90695,2049.5,2049.4,5.05813518]
[1617623316027,4.94535,2049.5,2049.4,5.05813518]
[1617623321230,4.94535,2049.5,2049.3,5.05993203]
[1617623321631,4.94535,2049.5,2049.4,5.05986437]
[1617623322731,4.94535,2049.5,2049.3,5.0578456]
[1617623336252,4.94535,2049.5,2049.3,6.19755396]
[1617623337353,4.94535,2049.5,2049.1,2.90695]
[1617623337354,4.94535,2049.5,2049.2,6.19773555]
[1617623338354,4.94535,2049.5,2049.1,2.90695]
[1617623338355,4.94535,2049.5,2049.3,6.1980961]
[1617623341458,4.94535,2049.5,2049.2,6.19877991]
[1617623342161,4.94535,2049.5,2049.4,5.0729261]
[1617623342561,4.94535,2049.5,2049.3,6.20114734]
[1617623343562,4.94535,2049.5,2049.4,5.07519175]
[1617623343967,4.94535,2049.5,2049.2,6.20301214]
[1617623344262,4.94535,2049.5,2049.3,6.20393214]
[1617623345264,2.0384,2049.5,2049.3,6.20393214]
[1617623345464,1.9409,2050.1,2049.3,6.20393214]
[1617623345667,91.6119,2050.4,2049.4,6.20181864]
[1617623345865,91.6119,2050.4,2049.8,5.07199457]
[1617623346065,91.6119,2050.4,2049.9,2.90695]
[1617623346465,91.6119,2050.4,2049.9,5.74865]
[1617623346666,91.6119,2050.4,2049.9,10.8185947]
[1617623347066,55.0,2051.1,2049.9,10.8185947]
[1617623347266,55.0,2051.1,2049.9,5.74865]
[1617623347467,75.8305,2050.9,2049.9,5.74865]
[1617623347865,108.3289,2050.9,2049.9,2.90695]
[1617623348067,108.3289,2050.9,2049.9,7.98110429]
[1617623348266,2.90695,2050.0,2049.9,7.98110429]
[1617623353978,2.90695,2050.0,2049.9,2.90695]
[1617623354879,2.90695,2050.0,2049.9,7.98284389]
[1617623355080,2.90695,2050.0,2049.9,2.90695]
[1617623355479,2.90695,2050.0,2049.9,7.98387739]
[1617623355679,80.92255,2050.0,2049.9,7.98387739]
[1617623358884,80.92255,2050.0,2049.9,2.90695]
[1617623359886,2.90695,2050.0,2049.9,2.90695]
[1617623360686,2.90695,2050.0,2049.6,7.33984081]
[1617623364293,2.90695,2050.0,2049.7,7.3486353]
[1617623365097,2.90695,2050.0,2049.6,7.35069045]
[1617623366397,2.90695,2050.0,2049.9,2.90695]
[1617623366600,2.90695,2050.0,2049.9,5.12735]
[1617623369705,2.90695,2050.0,2049.9,2.90695]
[1617623374513,2.90695,2050.0,2049.9,4.90695]
[1617623376014,105.1839,2051.1,2049.9,4.90695]
[1617623376216,105.1839,2051.1,2049.9,12.25154585]
[1617623376614,105.1839,2051.1,2050.7,5.08295419]
[1617623377415,105.1839,2051.1,2050.6,5.08267743]
[1617623377815,105.1839,2051.1,2050.7,5.08261966]
[1617623378517,2.90695,2050.8,2050.7,5.08261966]
[1617623378816,2.90695,2050.8,2050.5,5.07719403]
[1617623383629,105.1839,2051.1,2050.5,5.07719403]
[1617623384129,105.1839,2051.1,2050.4,5.0735723]
[1617623384528,2.90695,2050.5,2050.4,5.0735723]
[1617623384729,2.90695,2050.5,2050.3,9.10758459]
[1617623385430,2.90695,2050.5,2050.3,2.90695]
[1617623385729,2.90695,2050.5,2050.4,5.07476015]
[1617623386131,2.90695,2050.5,2050.3,9.10902732]
[1617623388131,2.90695,2050.5,2050.3,6.20207732]
[1617623388332,2.90695,2050.5,2050.4,5.0755398]
[1617623390336,2.90695,2050.5,2050.3,5.07421179]
[1617623394942,2.90695,2050.5,2050.2,5.07231128]
[1617623398946,2.90695,2050.5,2049.8,2.90695]
[1617623398947,2.90695,2050.5,2050.3,5.07012862]
[1617623399143,2.90695,2050.5,2050.2,5.0714688]
[1617623399547,2.90695,2050.5,2050.3,5.07184006]
[1617623399745,2.90695,2050.5,2050.1,6.19891563]
[1617623400045,2.90695,2050.5,2050.3,5.07170094]
[1617623401245,2.90695,2050.5,2050.2,5.07286405]
[1617623403849,2.90695,2050.5,2050.3,5.07091697]
[1617623404948,2.90695,2050.5,2050.2,5.07030338]
[1617623406450,2.90695,2050.5,2050.1,5.07172217]
[1617623407050,2.90695,2050.2,2050.1,5.07172217]
[1617623407252,5.47165,2050.2,2050.1,5.07172217]
[1617623408350,5.47165,2050.2,2049.9,6.19877154]
[1617623408751,5.47165,2050.2,2050.1,5.06940469]
[1617623410956,5.47165,2050.2,2049.9,6.19877154]
[1617623410957,5.47165,2050.2,2050.0,5.07376662]
[1617623411561,5.47165,2050.2,2049.9,5.07427556]
[1617623412758,71.1252,2050.1,2049.9,5.07427556]
[1617623412967,71.1252,2050.1,2049.8,5.07752059]
[1617623413358,71.1252,2050.1,2049.9,5.0771024]
[1617623415460,71.1252,2050.1,2049.8,5.07819999]
[1617623416963,2.90695,2049.9,2049.8,5.07819999]
[1617623417261,2.90695,2049.9,2049.7,6.20596637]
[1617623417662,2.90695,2049.9,2049.8,5.07733802]
[1617623420662,2.90695,2049.9,2049.7,5.06919419]
[1617623422168,2.8866783,2049.9,2049.7,5.06919419]
[1617623423168,2.8866783,2049.9,2049.6,5.06688816]
[1617623423468,2.8866783,2049.9,2049.7,5.06667388]
[1617623423867,2.8866783,2049.9,2049.6,5.06534867]
[1617623425468,2.8866783,2049.9,2049.7,5.06338657]
[1617623427971,2.8866783,2049.9,2049.6,5.06306976]
[1617623429574,2.8866783,2049.9,2048.7,2.0]
[1617623429575,2.8866783,2049.9,2049.5,5.064462]
[1617623431075,2.90695,2049.6,2049.5,5.064462]
[1617623431276,5.04685,2049.6,2049.5,5.064462]
[1617623432278,5.04685,2049.6,2049.3,6.189898]
[1617623432477,5.04685,2049.6,2049.4,5.0648041]
[1617623432977,5.04685,2049.6,2049.2,5.05895105]
[1617623433176,2.90695,2049.3,2049.2,5.05895105]
[1617623435082,2.90695,2049.3,2049.0,6.1831624]
[1617623435482,2.90695,2049.3,2049.2,5.05950631]
[1617623436282,2.90695,2049.3,2049.1,6.18360694]
[1617623436482,2.90695,2049.3,2049.2,5.05954129]
[1617623436984,2.90695,2049.3,2049.1,6.18306361]
[1617623440786,3.87405,2049.3,2049.1,6.18306361]
[1617623440988,2.90695,2049.3,2049.1,6.18306361]
[1617623441589,2.90695,2049.3,2049.2,5.05655386]
[1617623441991,2.90695,2049.3,2049.0,6.1802325]
[1617623442392,2.90695,2049.3,2049.1,6.17990101]
[1617623443391,2.90695,2049.3,2049.2,5.05641619]
[1617623444795,3.88005,2049.3,2049.2,5.05641619]
[1617623444994,2.90695,2049.3,2049.2,5.05641619]
[1617623445796,2.90695,2049.3,2049.1,5.0544193]
[1617623448101,2.90695,2049.3,2049.2,5.05289651]
[1617623448602,2.90695,2049.3,2049.1,5.05323232]
[1617623456410,2.90695,2049.3,2049.0,5.05150558]
[1617623457610,2.90695,2049.3,2048.9,5.05180195]
[1617623457811,2.90695,2049.3,2049.0,5.05208073]
[1617623458213,2.90695,2049.3,2048.9,5.05392503]
[1617623458912,2.90695,2049.3,2049.0,5.05594932]
[1617623460712,2.90695,2049.3,2048.9,5.05648777]
[1617623461613,2.90695,2049.0,2048.9,5.05648777]
[1617623463617,2.90695,2049.0,2048.8,5.05464356]
[1617623464618,2.90695,2049.0,2048.6,5.05859664]
[1617623464918,2.90695,2049.0,2048.3,6.18272923]
[1617623464919,2.90695,2049.0,2048.5,5.05958854]
[1617623465118,59.9486,2048.9,2048.5,5.05958854]
[1617623465619,2.90695,2048.6,2048.5,5.05958854]
[1617623465818,5.73265,2048.6,2048.5,5.05958854]
[1617623466318,5.73265,2048.6,2048.3,6.18272923]
[1617623466319,5.73265,2048.6,2048.3,5.05468989]
[1617623467120,5.73265,2048.6,2048.2,5.05614256]
[1617623467719,2.90695,2048.3,2048.2,5.05614256]
[1617623468622,2.90695,2048.3,2048.1,5.05999118]
[1617623470022,2.90695,2048.3,2047.6,2.90695]
[1617623470023,2.90695,2048.3,2048.2,5.05739856]
[1617623471924,2.90695,2048.3,2048.1,5.0566205]
[1617623472627,2.90695,2048.3,2048.2,5.05600884]
[1617623473628,2.90695,2048.3,2047.6,10.21007389]
[1617623473629,2.90695,2048.3,2048.1,5.05188728]
[1617623477332,2.90695,2048.3,2048.1,6.17101282]
[1617623477532,1.0028082,2052.0,2048.1,8.17101282]
[1617623477533,33.5433,2050.2,2048.1,8.17101282]
[1617623477732,0.9786,2050.2,2048.7,2.90695]
[1617623477933,0.9786,2050.2,2048.7,4.96165]
[1617623478132,2.0,2050.1,2048.7,4.96165]
[1617623479534,100.7411,2050.4,2048.7,4.96165]
[1617623479734,2.90695,2048.8,2048.7,4.96165]
[1617623480337,2.90695,2048.8,2048.7,10.00708883]
[1617623482341,2.90695,2048.8,2048.7,4.96165]
[1617623483645,2.90695,2048.8,2048.7,10.01038914]
[1617623486045,2.90695,2048.8,2048.7,4.96165]
[1617623486346,2.90695,2048.8,2048.7,2.90695]
[1617623486547,2.90695,2048.8,2048.7,7.95592099]
[1617623487750,2.90695,2048.8,2048.7,2.90695]
[1617623491055,2.90695,2048.8,2048.7,7.97154469]
[1617623491455,2.90695,2048.8,2048.7,2.90695]
[1617623492955,2.90695,2048.8,2048.7,4.90695]
[1617623493355,2.90695,2048.8,2048.7,11.09319727]
[1617623497461,2.90695,2048.8,2048.7,4.90695]
[1617623498260,63.9967,2049.4,2048.7,4.90695]
[1617623498860,63.9967,2049.4,2049.1,5.0601454]
[1617623499060,63.9967,2049.4,2049.2,2.0]
[1617623499861,66.90365,2049.4,2049.3,2.90695]
[1617623500062,2.90695,2049.4,2049.3,4.90695]
[1617623500262,2.90695,2049.4,2049.3,11.0943133]
[1617623500663,2.90695,2049.4,2049.3,4.90695]
[1617623501364,2.90695,2049.4,2049.3,11.09332503]
[1617623501764,2.90695,2049.4,2049.3,4.90695]
[1617623505371,2.90695,2049.4,2049.3,11.09367923]
[1617623510177,2.90695,2049.4,2049.3,4.90695]
[1617623511478,2.90695,2049.4,2049.3,11.09373994]
[1617623513381,2.90695,2049.4,2049.3,4.90695]
[1617623514180,2.90695,2049.4,2049.3,11.09221048]
[1617623514581,2.90695,2049.4,2049.3,4.90695]
[1617623515180,2.90695,2049.4,2049.3,11.09208112]
[1617623515581,2.90695,2049.4,2049.3,4.90695]
[1617623516783,2.90695,2049.4,2049.3,11.09199974]
[1617623518288,4.92135,2049.4,2049.3,11.09199974]
[1617623520691,4.92135,2049.4,2049.3,9.09199974]
[1617623520890,4.92135,2049.4,2049.3,6.18504974]
[1617623521294,4.92135,2049.4,2049.2,6.18466863]
[1617623522693,4.92135,2049.4,2049.3,5.06030933]
[1617623523494,4.92135,2049.4,2049.2,6.18425384]